{"text_format":"1","workbook":"xlsx","n_sheets":3,"sheets":["Expense","Category","Category_and_subcat"],"not_rendered":{"charts":2,"images":0,"macros":1,"external_links":0,"defined_names":3,"comments":0,"pivot_tables":0},"unopened":[],"bounds":{"document_bytes":16777216,"sheet_cells":100000,"rows_first":2000,"rows_last":500,"rows_between":2000,"halvings":0,"cell_chars":16384,"cell_head_chars":4096},"cells_cut":0,"cells_raw":0,"read":"whole","date_system":"1900"}

{"sheet":"Expense","index":0,"n_rows":1000,"n_cols":16,"rows_kept":1000,"cut":false,"hidden":false,"merged":[]}
["סוג","שם המוסד","תאריך","שם פעולה","הערות","סכום מקור","סכום סופי","קטגוריה","קטגוריית משנה","מקדם","לכלול"]
["בנק","פועלים","1.1.1980","ויזה","הערות",100,{"$f":"IF(K2=\"N\",0,IF(K2=\"Y\",F2/J2,\"\"))","v":0},"NA",null,{"$f":"IF(A2=\"\",\"\",1)","v":1},"N",null,null,null,null,"החישובים באקסל זה הינם הערכות בלבד ומשמשות "]
["ויזה","כאל","1.1.1980","חנות בגדים","הערות",100,100,"ביגוד",null,{"$f":"IF(A3=\"\",\"\",1)","v":1},"Y",null,null,null,null,"לצרכי סימולציה."]
["ויזה","כאל","1.1.1980","פיצה","הערות",50,50,"אוכל","בחוץ",1,{"$f":"IF(A4=\"\",\"\",\"Y\")","v":"Y"},null,null,null,null,"אין לפרש דבר מהאמור לעיל כהבטחה או התחייבות בנוגע "]
["ויזה","כאל","1.1.1980","סופרפארם","הערות",50,50,"פארם",null,1,"Y",null,null,null,null,"לתוצאות המוצגות. "]
["ויזה","כאל","1.1.1980","פלאפל","הערות",50,50,"אוכל","עבודה",1,"Y"]
["ויזה","כאל","1.1.1980","קניית סלון","הערות",500,100,"שיפוץ בית",null,5,"Y"]
["ויזה","כאל","1.1.1980","פלאפל","הערות",70,{"$f":"IF(K8=\"N\",0,IF(K8=\"Y\",F8/J8,\"\"))","v":70},"אוכל","עבודה",1,"Y"]
[null,null,null,null,null,null,{"$f":"IF(K9=\"N\",0,IF(K9=\"Y\",F9/J9,\"\"))","v":""},null,null,"",""]
[null,null,null,null,null,null,"",null,null,"",""]
[null,null,null,null,null,null,"",null,null,"",""]
[null,null,null,null,null,null,"",null,null,"",""]
[null,null,null,null,null,null,"",null,null,"",""]
[null,null,null,null,null,null,"",null,null,"",""]
[null,null,null,null,null,null,"",null,null,"",""]
[null,null,null,null,null,null,"",null,null,"",""]
[null,null,null,null,null,null,"",null,null,"",""]
[null,null,null,null,null,null,"",null,null,"",""]
[null,null,null,null,null,null,"",null,null,"",""]
[null,null,null,null,null,null,"",null,null,"",""]
[null,null,null,null,null,null,"",null,null,"",""]
[null,null,null,null,null,null,"",null,null,"",""]
[null,null,null,null,null,null,"",null,null,"",""]
[null,null,null,null,null,null,"",null,null,"",""]
[null,null,null,null,null,null,"",null,null,"",""]
[null,null,null,null,null,null,"",null,null,"",""]
[null,null,null,null,null,null,"",null,null,"",""]
[null,null,null,null,null,null,"",null,null,"",""]
[null,null,null,null,null,null,"",null,null,"",""]
[null,null,null,null,null,null,"",null,null,"",""]
[null,null,null,null,null,null,"",null,null,"",""]
[null,null,null,null,null,null,"",null,null,"",""]
[null,null,null,null,null,null,"",null,null,"",""]
[null,null,null,null,null,null,"",null,null,"",""]
[null,null,null,null,null,null,"",null,null,"",""]
[null,null,null,null,null,null,"",null,null,"",""]
[null,null,null,null,null,null,"",null,null,"",""]
[null,null,null,null,null,null,"",null,null,"",""]
[null,null,null,null,null,null,"",null,null,"",""]
[null,null,null,null,null,null,"",null,null,"",""]
[null,null,null,null,null,null,"",null,null,"",""]
[null,null,null,null,null,null,"",null,null,"",""]
[null,null,null,null,null,null,"",null,null,"",""]
[null,null,null,null,null,null,"",null,null,"",""]
[null,null,null,null,null,null,"",null,null,"",""]
[null,null,null,null,null,null,"",null,null,"",""]
[null,null,null,null,null,null,"",null,null,"",""]
[null,null,null,null,null,null,"",null,null,"",""]
[null,null,null,null,null,null,"",null,null,"",""]
[null,null,null,null,null,null,"",null,null,"",""]
[null,null,null,null,null,null,"",null,null,"",""]
[null,null,null,null,null,null,"",null,null,"",""]
[null,null,null,null,null,null,"",null,null,"",""]
[null,null,null,null,null,null,"",null,null,"",""]
[null,null,null,null,null,null,"",null,null,"",""]
[null,null,null,null,null,null,"",null,null,"",""]
[null,null,null,null,null,null,"",null,null,"",""]
[null,null,null,null,null,null,"",null,null,"",""]
[null,null,null,null,null,null,"",null,null,"",""]
[null,null,null,null,null,null,"",null,null,"",""]
[null,null,null,null,null,null,"",null,null,"",""]
[null,null,null,null,null,null,"",null,null,"",""]
[null,null,null,null,null,null,"",null,null,"",""]
[null,null,null,null,null,null,"",null,null,"",""]
[null,null,null,null,null,null,"",null,null,"",""]
[null,null,null,null,null,null,"",null,null,"",""]
[null,null,null,null,null,null,"",null,null,{"$f":"IF(A67=\"\",\"\",1)","v":""},{"$f":"IF(A67=\"\",\"\",\"Y\")","v":""}]
[null,null,null,null,null,null,"",null,null,"",""]
[null,null,null,null,null,null,"",null,null,"",""]
[null,null,null,null,null,null,"",null,null,"",""]
[null,null,null,null,null,null,"",null,null,"",""]
[null,null,null,null,null,null,"",null,null,"",""]
[null,null,null,null,null,null,{"$f":"IF(K73=\"N\",0,IF(K73=\"Y\",F73/J73,\"\"))","v":""},null,null,"",""]
[null,null,null,null,null,null,"",null,null,"",""]
[null,null,null,null,null,null,"",null,null,"",""]
[null,null,null,null,null,null,"",null,null,"",""]
[null,null,null,null,null,null,"",null,null,"",""]
[null,null,null,null,null,null,"",null,null,"",""]
[null,null,null,null,null,null,"",null,null,"",""]
[null,null,null,null,null,null,"",null,null,"",""]
[null,null,null,null,null,null,"",null,null,"",""]
[null,null,null,null,null,null,"",null,null,"",""]
[null,null,null,null,null,null,"",null,null,"",""]
[null,null,null,null,null,null,"",null,null,"",""]
[null,null,null,null,null,null,"",null,null,"",""]
[null,null,null,null,null,null,"",null,null,"",""]
[null,null,null,null,null,null,"",null,null,"",""]
[null,null,null,null,null,null,"",null,null,"",""]
[null,null,null,null,null,null,"",null,null,"",""]
[null,null,null,null,null,null,"",null,null,"",""]
[null,null,null,null,null,null,"",null,null,"",""]
[null,null,null,null,null,null,"",null,null,"",""]
[null,null,null,null,null,null,"",null,null,"",""]
[null,null,null,null,null,null,"",null,null,"",""]
[null,null,null,null,null,null,"",null,null,"",""]
[null,null,null,null,null,null,"",null,null,"",""]
[null,null,null,null,null,null,"",null,null,"",""]
[null,null,null,null,null,null,"",null,null,"",""]
[null,null,null,null,null,null,"",null,null,"",""]
[null,null,null,null,null,null,"",null,null,"",""]
[null,null,null,null,null,null,"",null,null,"",""]
[null,null,null,null,null,null,"",null,null,"",""]
[null,null,null,null,null,null,"",null,null,"",""]
[null,null,null,null,null,null,"",null,null,"",""]
[null,null,null,null,null,null,"",null,null,"",""]
[null,null,null,null,null,null,"",null,null,"",""]
[null,null,null,null,null,null,"",null,null,"",""]
[null,null,null,null,null,null,"",null,null,"",""]
[null,null,null,null,null,null,"",null,null,"",""]
[null,null,null,null,null,null,"",null,null,"",""]
[null,null,null,null,null,null,"",null,null,"",""]
[null,null,null,null,null,null,"",null,null,"",""]
[null,null,null,null,null,null,"",null,null,"",""]
[null,null,null,null,null,null,"",null,null,"",""]
[null,null,null,null,null,null,"",null,null,"",""]
[null,null,null,null,null,null,"",null,null,"",""]
[null,null,null,null,null,null,"",null,null,"",""]
[null,null,null,null,null,null,"",null,null,"",""]
[null,null,null,null,null,null,"",null,null,"",""]
[null,null,null,null,null,null,"",null,null,"",""]
[null,null,null,null,null,null,"",null,null,"",""]
[null,null,null,null,null,null,"",null,null,"",""]
[null,null,null,null,null,null,"",null,null,"",""]
[null,null,null,null,null,null,"",null,null,"",""]
[null,null,null,null,null,null,"",null,null,"",""]
[null,null,null,null,null,null,"",null,null,"",""]
[null,null,null,null,null,null,"",null,null,"",""]
[null,null,null,null,null,null,"",null,null,"",""]
[null,null,null,null,null,null,"",null,null,"",""]
[null,null,null,null,null,null,"",null,null,"",""]
[null,null,null,null,null,null,"",null,null,{"$f":"IF(A131=\"\",\"\",1)","v":""},{"$f":"IF(A131=\"\",\"\",\"Y\")","v":""}]
[null,null,null,null,null,null,"",null,null,"",""]
[null,null,null,null,null,null,"",null,null,"",""]
[null,null,null,null,null,null,"",null,null,"",""]
[null,null,null,null,null,null,"",null,null,"",""]
[null,null,null,null,null,null,"",null,null,"",""]
[null,null,null,null,null,null,{"$f":"IF(K137=\"N\",0,IF(K137=\"Y\",F137/J137,\"\"))","v":""},null,null,"",""]
[null,null,null,null,null,null,"",null,null,"",""]
[null,null,null,null,null,null,"",null,null,"",""]
[null,null,null,null,null,null,"",null,null,"",""]
[null,null,null,null,null,null,"",null,null,"",""]
[null,null,null,null,null,null,"",null,null,"",""]
[null,null,null,null,null,null,"",null,null,"",""]
[null,null,null,null,null,null,"",null,null,"",""]
[null,null,null,null,null,null,"",null,null,"",""]
[null,null,null,null,null,null,"",null,null,"",""]
[null,null,null,null,null,null,"",null,null,"",""]
[null,null,null,null,null,null,"",null,null,"",""]
[null,null,null,null,null,null,"",null,null,"",""]
[null,null,null,null,null,null,"",null,null,"",""]
[null,null,null,null,null,null,"",null,null,"",""]
[null,null,null,null,null,null,"",null,null,"",""]
[null,null,null,null,null,null,"",null,null,"",""]
[null,null,null,null,null,null,"",null,null,"",""]
[null,null,null,null,null,null,"",null,null,"",""]
[null,null,null,null,null,null,"",null,null,"",""]
[null,null,null,null,null,null,"",null,null,"",""]
[null,null,null,null,null,null,"",null,null,"",""]
[null,null,null,null,null,null,"",null,null,"",""]
[null,null,null,null,null,null,"",null,null,"",""]
[null,null,null,null,null,null,"",null,null,"",""]
[null,null,null,null,null,null,"",null,null,"",""]
[null,null,null,null,null,null,"",null,null,"",""]
[null,null,null,null,null,null,"",null,null,"",""]
[null,null,null,null,null,null,"",null,null,"",""]
[null,null,null,null,null,null,"",null,null,"",""]
[null,null,null,null,null,null,"",null,null,"",""]
[null,null,null,null,null,null,"",null,null,"",""]
[null,null,null,null,null,null,"",null,null,"",""]
[null,null,null,null,null,null,"",null,null,"",""]
[null,null,null,null,null,null,"",null,null,"",""]
[null,null,null,null,null,null,"",null,null,"",""]
[null,null,null,null,null,null,"",null,null,"",""]
[null,null,null,null,null,null,"",null,null,"",""]
[null,null,null,null,null,null,"",null,null,"",""]
[null,null,null,null,null,null,"",null,null,"",""]
[null,null,null,null,null,null,"",null,null,"",""]
[null,null,null,null,null,null,"",null,null,"",""]
[null,null,null,null,null,null,"",null,null,"",""]
[null,null,null,null,null,null,"",null,null,"",""]
[null,null,null,null,null,null,"",null,null,"",""]
[null,null,null,null,null,null,"",null,null,"",""]
[null,null,null,null,null,null,"",null,null,"",""]
[null,null,null,null,null,null,"",null,null,"",""]
[null,null,null,null,null,null,"",null,null,"",""]
[null,null,null,null,null,null,"",null,null,"",""]
[null,null,null,null,null,null,"",null,null,"",""]
[null,null,null,null,null,null,"",null,null,"",""]
[null,null,null,null,null,null,"",null,null,"",""]
[null,null,null,null,null,null,"",null,null,"",""]
[null,null,null,null,null,null,"",null,null,"",""]
[null,null,null,null,null,null,"",null,null,"",""]
[null,null,null,null,null,null,"",null,null,"",""]
[null,null,null,null,null,null,"",null,null,"",""]
[null,null,null,null,null,null,"",null,null,{"$f":"IF(A195=\"\",\"\",1)","v":""},{"$f":"IF(A195=\"\",\"\",\"Y\")","v":""}]
[null,null,null,null,null,null,"",null,null,"",""]
[null,null,null,null,null,null,"",null,null,"",""]
[null,null,null,null,null,null,"",null,null,"",""]
[null,null,null,null,null,null,"",null,null,"",""]
[null,null,null,null,null,null,"",null,null,"",""]
[null,null,null,null,null,null,{"$f":"IF(K201=\"N\",0,IF(K201=\"Y\",F201/J201,\"\"))","v":""},null,null,"",""]
[null,null,null,null,null,null,"",null,null,"",""]
[null,null,null,null,null,null,"",null,null,"",""]
[null,null,null,null,null,null,"",null,null,"",""]
[null,null,null,null,null,null,"",null,null,"",""]
[null,null,null,null,null,null,"",null,null,"",""]
[null,null,null,null,null,null,"",null,null,"",""]
[null,null,null,null,null,null,"",null,null,"",""]
[null,null,null,null,null,null,"",null,null,"",""]
[null,null,null,null,null,null,"",null,null,"",""]
[null,null,null,null,null,null,"",null,null,"",""]
[null,null,null,null,null,null,"",null,null,"",""]
[null,null,null,null,null,null,"",null,null,"",""]
[null,null,null,null,null,null,"",null,null,"",""]
[null,null,null,null,null,null,"",null,null,"",""]
[null,null,null,null,null,null,"",null,null,"",""]
[null,null,null,null,null,null,"",null,null,"",""]
[null,null,null,null,null,null,"",null,null,"",""]
[null,null,null,null,null,null,"",null,null,"",""]
[null,null,null,null,null,null,"",null,null,"",""]
[null,null,null,null,null,null,"",null,null,"",""]
[null,null,null,null,null,null,"",null,null,"",""]
[null,null,null,null,null,null,"",null,null,"",""]
[null,null,null,null,null,null,"",null,null,"",""]
[null,null,null,null,null,null,"",null,null,"",""]
[null,null,null,null,null,null,"",null,null,"",""]
[null,null,null,null,null,null,"",null,null,"",""]
[null,null,null,null,null,null,"",null,null,"",""]
[null,null,null,null,null,null,"",null,null,"",""]
[null,null,null,null,null,null,"",null,null,"",""]
[null,null,null,null,null,null,"",null,null,"",""]
[null,null,null,null,null,null,"",null,null,"",""]
[null,null,null,null,null,null,"",null,null,"",""]
[null,null,null,null,null,null,"",null,null,"",""]
[null,null,null,null,null,null,"",null,null,"",""]
[null,null,null,null,null,null,"",null,null,"",""]
[null,null,null,null,null,null,"",null,null,"",""]
[null,null,null,null,null,null,"",null,null,"",""]
[null,null,null,null,null,null,"",null,null,"",""]
[null,null,null,null,null,null,"",null,null,"",""]
[null,null,null,null,null,null,"",null,null,"",""]
[null,null,null,null,null,null,"",null,null,"",""]
[null,null,null,null,null,null,"",null,null,"",""]
[null,null,null,null,null,null,"",null,null,"",""]
[null,null,null,null,null,null,"",null,null,"",""]
[null,null,null,null,null,null,"",null,null,"",""]
[null,null,null,null,null,null,"",null,null,"",""]
[null,null,null,null,null,null,"",null,null,"",""]
[null,null,null,null,null,null,"",null,null,"",""]
[null,null,null,null,null,null,"",null,null,"",""]
[null,null,null,null,null,null,"",null,null,"",""]
[null,null,null,null,null,null,"",null,null,"",""]
[null,null,null,null,null,null,"",null,null,"",""]
[null,null,null,null,null,null,"",null,null,"",""]
[null,null,null,null,null,null,"",null,null,"",""]
[null,null,null,null,null,null,"",null,null,"",""]
[null,null,null,null,null,null,"",null,null,"",""]
[null,null,null,null,null,null,"",null,null,"",""]
[null,null,null,null,null,null,"",null,null,{"$f":"IF(A259=\"\",\"\",1)","v":""},{"$f":"IF(A259=\"\",\"\",\"Y\")","v":""}]
[null,null,null,null,null,null,"",null,null,"",""]
[null,null,null,null,null,null,"",null,null,"",""]
[null,null,null,null,null,null,"",null,null,"",""]
[null,null,null,null,null,null,"",null,null,"",""]
[null,null,null,null,null,null,"",null,null,"",""]
[null,null,null,null,null,null,{"$f":"IF(K265=\"N\",0,IF(K265=\"Y\",F265/J265,\"\"))","v":""},null,null,"",""]
[null,null,null,null,null,null,"",null,null,"",""]
[null,null,null,null,null,null,"",null,null,"",""]
[null,null,null,null,null,null,"",null,null,"",""]
[null,null,null,null,null,null,"",null,null,"",""]
[null,null,null,null,null,null,"",null,null,"",""]
[null,null,null,null,null,null,"",null,null,"",""]
[null,null,null,null,null,null,"",null,null,"",""]
[null,null,null,null,null,null,"",null,null,"",""]
[null,null,null,null,null,null,"",null,null,"",""]
[null,null,null,null,null,null,"",null,null,"",""]
[null,null,null,null,null,null,"",null,null,"",""]
[null,null,null,null,null,null,"",null,null,"",""]
[null,null,null,null,null,null,"",null,null,"",""]
[null,null,null,null,null,null,"",null,null,"",""]
[null,null,null,null,null,null,"",null,null,"",""]
[null,null,null,null,null,null,"",null,null,"",""]
[null,null,null,null,null,null,"",null,null,"",""]
[null,null,null,null,null,null,"",null,null,"",""]
[null,null,null,null,null,null,"",null,null,"",""]
[null,null,null,null,null,null,"",null,null,"",""]
[null,null,null,null,null,null,"",null,null,"",""]
[null,null,null,null,null,null,"",null,null,"",""]
[null,null,null,null,null,null,"",null,null,"",""]
[null,null,null,null,null,null,"",null,null,"",""]
[null,null,null,null,null,null,"",null,null,"",""]
[null,null,null,null,null,null,"",null,null,"",""]
[null,null,null,null,null,null,"",null,null,"",""]
[null,null,null,null,null,null,"",null,null,"",""]
[null,null,null,null,null,null,"",null,null,"",""]
[null,null,null,null,null,null,"",null,null,"",""]
[null,null,null,null,null,null,"",null,null,"",""]
[null,null,null,null,null,null,"",null,null,"",""]
[null,null,null,null,null,null,"",null,null,"",""]
[null,null,null,null,null,null,"",null,null,"",""]
[null,null,null,null,null,null,"",null,null,"",""]
[null,null,null,null,null,null,"",null,null,"",""]
[null,null,null,null,null,null,"",null,null,"",""]
[null,null,null,null,null,null,"",null,null,"",""]
[null,null,null,null,null,null,"",null,null,"",""]
[null,null,null,null,null,null,"",null,null,"",""]
[null,null,null,null,null,null,"",null,null,"",""]
[null,null,null,null,null,null,"",null,null,"",""]
[null,null,null,null,null,null,"",null,null,"",""]
[null,null,null,null,null,null,"",null,null,"",""]
[null,null,null,null,null,null,"",null,null,"",""]
[null,null,null,null,null,null,"",null,null,"",""]
[null,null,null,null,null,null,"",null,null,"",""]
[null,null,null,null,null,null,"",null,null,"",""]
[null,null,null,null,null,null,"",null,null,"",""]
[null,null,null,null,null,null,"",null,null,"",""]
[null,null,null,null,null,null,"",null,null,"",""]
[null,null,null,null,null,null,"",null,null,"",""]
[null,null,null,null,null,null,"",null,null,"",""]
[null,null,null,null,null,null,"",null,null,"",""]
[null,null,null,null,null,null,"",null,null,"",""]
[null,null,null,null,null,null,"",null,null,"",""]
[null,null,null,null,null,null,"",null,null,"",""]
[null,null,null,null,null,null,"",null,null,{"$f":"IF(A323=\"\",\"\",1)","v":""},{"$f":"IF(A323=\"\",\"\",\"Y\")","v":""}]
[null,null,null,null,null,null,"",null,null,"",""]
[null,null,null,null,null,null,"",null,null,"",""]
[null,null,null,null,null,null,"",null,null,"",""]
[null,null,null,null,null,null,"",null,null,"",""]
[null,null,null,null,null,null,"",null,null,"",""]
[null,null,null,null,null,null,{"$f":"IF(K329=\"N\",0,IF(K329=\"Y\",F329/J329,\"\"))","v":""},null,null,"",""]
[null,null,null,null,null,null,"",null,null,"",""]
[null,null,null,null,null,null,"",null,null,"",""]
[null,null,null,null,null,null,"",null,null,"",""]
[null,null,null,null,null,null,"",null,null,"",""]
[null,null,null,null,null,null,"",null,null,"",""]
[null,null,null,null,null,null,"",null,null,"",""]
[null,null,null,null,null,null,"",null,null,"",""]
[null,null,null,null,null,null,"",null,null,"",""]
[null,null,null,null,null,null,"",null,null,"",""]
[null,null,null,null,null,null,"",null,null,"",""]
[null,null,null,null,null,null,"",null,null,"",""]
[null,null,null,null,null,null,"",null,null,"",""]
[null,null,null,null,null,null,"",null,null,"",""]
[null,null,null,null,null,null,"",null,null,"",""]
[null,null,null,null,null,null,"",null,null,"",""]
[null,null,null,null,null,null,"",null,null,"",""]
[null,null,null,null,null,null,"",null,null,"",""]
[null,null,null,null,null,null,"",null,null,"",""]
[null,null,null,null,null,null,"",null,null,"",""]
[null,null,null,null,null,null,"",null,null,"",""]
[null,null,null,null,null,null,"",null,null,"",""]
[null,null,null,null,null,null,"",null,null,"",""]
[null,null,null,null,null,null,"",null,null,"",""]
[null,null,null,null,null,null,"",null,null,"",""]
[null,null,null,null,null,null,"",null,null,"",""]
[null,null,null,null,null,null,"",null,null,"",""]
[null,null,null,null,null,null,"",null,null,"",""]
[null,null,null,null,null,null,"",null,null,"",""]
[null,null,null,null,null,null,"",null,null,"",""]
[null,null,null,null,null,null,"",null,null,"",""]
[null,null,null,null,null,null,"",null,null,"",""]
[null,null,null,null,null,null,"",null,null,"",""]
[null,null,null,null,null,null,"",null,null,"",""]
[null,null,null,null,null,null,"",null,null,"",""]
[null,null,null,null,null,null,"",null,null,"",""]
[null,null,null,null,null,null,"",null,null,"",""]
[null,null,null,null,null,null,"",null,null,"",""]
[null,null,null,null,null,null,"",null,null,"",""]
[null,null,null,null,null,null,"",null,null,"",""]
[null,null,null,null,null,null,"",null,null,"",""]
[null,null,null,null,null,null,"",null,null,"",""]
[null,null,null,null,null,null,"",null,null,"",""]
[null,null,null,null,null,null,"",null,null,"",""]
[null,null,null,null,null,null,"",null,null,"",""]
[null,null,null,null,null,null,"",null,null,"",""]
[null,null,null,null,null,null,"",null,null,"",""]
[null,null,null,null,null,null,"",null,null,"",""]
[null,null,null,null,null,null,"",null,null,"",""]
[null,null,null,null,null,null,"",null,null,"",""]
[null,null,null,null,null,null,"",null,null,"",""]
[null,null,null,null,null,null,"",null,null,"",""]
[null,null,null,null,null,null,"",null,null,"",""]
[null,null,null,null,null,null,"",null,null,"",""]
[null,null,null,null,null,null,"",null,null,"",""]
[null,null,null,null,null,null,"",null,null,"",""]
[null,null,null,null,null,null,"",null,null,"",""]
[null,null,null,null,null,null,"",null,null,"",""]
[null,null,null,null,null,null,"",null,null,{"$f":"IF(A387=\"\",\"\",1)","v":""},{"$f":"IF(A387=\"\",\"\",\"Y\")","v":""}]
[null,null,null,null,null,null,"",null,null,"",""]
[null,null,null,null,null,null,"",null,null,"",""]
[null,null,null,null,null,null,"",null,null,"",""]
[null,null,null,null,null,null,"",null,null,"",""]
[null,null,null,null,null,null,"",null,null,"",""]
[null,null,null,null,null,null,{"$f":"IF(K393=\"N\",0,IF(K393=\"Y\",F393/J393,\"\"))","v":""},null,null,"",""]
[null,null,null,null,null,null,"",null,null,"",""]
[null,null,null,null,null,null,"",null,null,"",""]
[null,null,null,null,null,null,"",null,null,"",""]
[null,null,null,null,null,null,"",null,null,"",""]
[null,null,null,null,null,null,"",null,null,"",""]
[null,null,null,null,null,null,"",null,null,"",""]
[null,null,null,null,null,null,"",null,null,"",""]
[null,null,null,null,null,null,"",null,null,"",""]
[null,null,null,null,null,null,"",null,null,"",""]
[null,null,null,null,null,null,"",null,null,"",""]
[null,null,null,null,null,null,"",null,null,"",""]
[null,null,null,null,null,null,"",null,null,"",""]
[null,null,null,null,null,null,"",null,null,"",""]
[null,null,null,null,null,null,"",null,null,"",""]
[null,null,null,null,null,null,"",null,null,"",""]
[null,null,null,null,null,null,"",null,null,"",""]
[null,null,null,null,null,null,"",null,null,"",""]
[null,null,null,null,null,null,"",null,null,"",""]
[null,null,null,null,null,null,"",null,null,"",""]
[null,null,null,null,null,null,"",null,null,"",""]
[null,null,null,null,null,null,"",null,null,"",""]
[null,null,null,null,null,null,"",null,null,"",""]
[null,null,null,null,null,null,"",null,null,"",""]
[null,null,null,null,null,null,"",null,null,"",""]
[null,null,null,null,null,null,"",null,null,"",""]
[null,null,null,null,null,null,"",null,null,"",""]
[null,null,null,null,null,null,"",null,null,"",""]
[null,null,null,null,null,null,"",null,null,"",""]
[null,null,null,null,null,null,"",null,null,"",""]
[null,null,null,null,null,null,"",null,null,"",""]
[null,null,null,null,null,null,"",null,null,"",""]
[null,null,null,null,null,null,"",null,null,"",""]
[null,null,null,null,null,null,"",null,null,"",""]
[null,null,null,null,null,null,"",null,null,"",""]
[null,null,null,null,null,null,"",null,null,"",""]
[null,null,null,null,null,null,"",null,null,"",""]
[null,null,null,null,null,null,"",null,null,"",""]
[null,null,null,null,null,null,"",null,null,"",""]
[null,null,null,null,null,null,"",null,null,"",""]
[null,null,null,null,null,null,"",null,null,"",""]
[null,null,null,null,null,null,"",null,null,"",""]
[null,null,null,null,null,null,"",null,null,"",""]
[null,null,null,null,null,null,"",null,null,"",""]
[null,null,null,null,null,null,"",null,null,"",""]
[null,null,null,null,null,null,"",null,null,"",""]
[null,null,null,null,null,null,"",null,null,"",""]
[null,null,null,null,null,null,"",null,null,"",""]
[null,null,null,null,null,null,"",null,null,"",""]
[null,null,null,null,null,null,"",null,null,"",""]
[null,null,null,null,null,null,"",null,null,"",""]
[null,null,null,null,null,null,"",null,null,"",""]
[null,null,null,null,null,null,"",null,null,"",""]
[null,null,null,null,null,null,"",null,null,"",""]
[null,null,null,null,null,null,"",null,null,"",""]
[null,null,null,null,null,null,"",null,null,"",""]
[null,null,null,null,null,null,"",null,null,"",""]
[null,null,null,null,null,null,"",null,null,"",""]
[null,null,null,null,null,null,"",null,null,{"$f":"IF(A451=\"\",\"\",1)","v":""},{"$f":"IF(A451=\"\",\"\",\"Y\")","v":""}]
[null,null,null,null,null,null,"",null,null,"",""]
[null,null,null,null,null,null,"",null,null,"",""]
[null,null,null,null,null,null,"",null,null,"",""]
[null,null,null,null,null,null,"",null,null,"",""]
[null,null,null,null,null,null,"",null,null,"",""]
[null,null,null,null,null,null,{"$f":"IF(K457=\"N\",0,IF(K457=\"Y\",F457/J457,\"\"))","v":""},null,null,"",""]
[null,null,null,null,null,null,"",null,null,"",""]
[null,null,null,null,null,null,"",null,null,"",""]
[null,null,null,null,null,null,"",null,null,"",""]
[null,null,null,null,null,null,"",null,null,"",""]
[null,null,null,null,null,null,"",null,null,"",""]
[null,null,null,null,null,null,"",null,null,"",""]
[null,null,null,null,null,null,"",null,null,"",""]
[null,null,null,null,null,null,"",null,null,"",""]
[null,null,null,null,null,null,"",null,null,"",""]
[null,null,null,null,null,null,"",null,null,"",""]
[null,null,null,null,null,null,"",null,null,"",""]
[null,null,null,null,null,null,"",null,null,"",""]
[null,null,null,null,null,null,"",null,null,"",""]
[null,null,null,null,null,null,"",null,null,"",""]
[null,null,null,null,null,null,"",null,null,"",""]
[null,null,null,null,null,null,"",null,null,"",""]
[null,null,null,null,null,null,"",null,null,"",""]
[null,null,null,null,null,null,"",null,null,"",""]
[null,null,null,null,null,null,"",null,null,"",""]
[null,null,null,null,null,null,"",null,null,"",""]
[null,null,null,null,null,null,"",null,null,"",""]
[null,null,null,null,null,null,"",null,null,"",""]
[null,null,null,null,null,null,"",null,null,"",""]
[null,null,null,null,null,null,"",null,null,"",""]
[null,null,null,null,null,null,"",null,null,"",""]
[null,null,null,null,null,null,"",null,null,"",""]
[null,null,null,null,null,null,"",null,null,"",""]
[null,null,null,null,null,null,"",null,null,"",""]
[null,null,null,null,null,null,"",null,null,"",""]
[null,null,null,null,null,null,"",null,null,"",""]
[null,null,null,null,null,null,"",null,null,"",""]
[null,null,null,null,null,null,"",null,null,"",""]
[null,null,null,null,null,null,"",null,null,"",""]
[null,null,null,null,null,null,"",null,null,"",""]
[null,null,null,null,null,null,"",null,null,"",""]
[null,null,null,null,null,null,"",null,null,"",""]
[null,null,null,null,null,null,"",null,null,"",""]
[null,null,null,null,null,null,"",null,null,"",""]
[null,null,null,null,null,null,"",null,null,"",""]
[null,null,null,null,null,null,"",null,null,"",""]
[null,null,null,null,null,null,"",null,null,"",""]
[null,null,null,null,null,null,"",null,null,"",""]
[null,null,null,null,null,null,"",null,null,"",""]
[null,null,null,null,null,null,"",null,null,"",""]
[null,null,null,null,null,null,"",null,null,"",""]
[null,null,null,null,null,null,"",null,null,"",""]
[null,null,null,null,null,null,"",null,null,"",""]
[null,null,null,null,null,null,"",null,null,"",""]
[null,null,null,null,null,null,"",null,null,"",""]
[null,null,null,null,null,null,"",null,null,"",""]
[null,null,null,null,null,null,"",null,null,"",""]
[null,null,null,null,null,null,"",null,null,"",""]
[null,null,null,null,null,null,"",null,null,"",""]
[null,null,null,null,null,null,"",null,null,"",""]
[null,null,null,null,null,null,"",null,null,"",""]
[null,null,null,null,null,null,"",null,null,"",""]
[null,null,null,null,null,null,"",null,null,"",""]
[null,null,null,null,null,null,"",null,null,{"$f":"IF(A515=\"\",\"\",1)","v":""},{"$f":"IF(A515=\"\",\"\",\"Y\")","v":""}]
[null,null,null,null,null,null,"",null,null,"",""]
[null,null,null,null,null,null,"",null,null,"",""]
[null,null,null,null,null,null,"",null,null,"",""]
[null,null,null,null,null,null,"",null,null,"",""]
[null,null,null,null,null,null,"",null,null,"",""]
[null,null,null,null,null,null,{"$f":"IF(K521=\"N\",0,IF(K521=\"Y\",F521/J521,\"\"))","v":""},null,null,"",""]
[null,null,null,null,null,null,"",null,null,"",""]
[null,null,null,null,null,null,"",null,null,"",""]
[null,null,null,null,null,null,"",null,null,"",""]
[null,null,null,null,null,null,"",null,null,"",""]
[null,null,null,null,null,null,"",null,null,"",""]
[null,null,null,null,null,null,"",null,null,"",""]
[null,null,null,null,null,null,"",null,null,"",""]
[null,null,null,null,null,null,"",null,null,"",""]
[null,null,null,null,null,null,"",null,null,"",""]
[null,null,null,null,null,null,"",null,null,"",""]
[null,null,null,null,null,null,"",null,null,"",""]
[null,null,null,null,null,null,"",null,null,"",""]
[null,null,null,null,null,null,"",null,null,"",""]
[null,null,null,null,null,null,"",null,null,"",""]
[null,null,null,null,null,null,"",null,null,"",""]
[null,null,null,null,null,null,"",null,null,"",""]
[null,null,null,null,null,null,"",null,null,"",""]
[null,null,null,null,null,null,"",null,null,"",""]
[null,null,null,null,null,null,"",null,null,"",""]
[null,null,null,null,null,null,"",null,null,"",""]
[null,null,null,null,null,null,"",null,null,"",""]
[null,null,null,null,null,null,"",null,null,"",""]
[null,null,null,null,null,null,"",null,null,"",""]
[null,null,null,null,null,null,"",null,null,"",""]
[null,null,null,null,null,null,"",null,null,"",""]
[null,null,null,null,null,null,"",null,null,"",""]
[null,null,null,null,null,null,"",null,null,"",""]
[null,null,null,null,null,null,"",null,null,"",""]
[null,null,null,null,null,null,"",null,null,"",""]
[null,null,null,null,null,null,"",null,null,"",""]
[null,null,null,null,null,null,"",null,null,"",""]
[null,null,null,null,null,null,"",null,null,"",""]
[null,null,null,null,null,null,"",null,null,"",""]
[null,null,null,null,null,null,"",null,null,"",""]
[null,null,null,null,null,null,"",null,null,"",""]
[null,null,null,null,null,null,"",null,null,"",""]
[null,null,null,null,null,null,"",null,null,"",""]
[null,null,null,null,null,null,"",null,null,"",""]
[null,null,null,null,null,null,"",null,null,"",""]
[null,null,null,null,null,null,"",null,null,"",""]
[null,null,null,null,null,null,"",null,null,"",""]
[null,null,null,null,null,null,"",null,null,"",""]
[null,null,null,null,null,null,"",null,null,"",""]
[null,null,null,null,null,null,"",null,null,"",""]
[null,null,null,null,null,null,"",null,null,"",""]
[null,null,null,null,null,null,"",null,null,"",""]
[null,null,null,null,null,null,"",null,null,"",""]
[null,null,null,null,null,null,"",null,null,"",""]
[null,null,null,null,null,null,"",null,null,"",""]
[null,null,null,null,null,null,"",null,null,"",""]
[null,null,null,null,null,null,"",null,null,"",""]
[null,null,null,null,null,null,"",null,null,"",""]
[null,null,null,null,null,null,"",null,null,"",""]
[null,null,null,null,null,null,"",null,null,"",""]
[null,null,null,null,null,null,"",null,null,"",""]
[null,null,null,null,null,null,"",null,null,"",""]
[null,null,null,null,null,null,"",null,null,"",""]
[null,null,null,null,null,null,"",null,null,{"$f":"IF(A579=\"\",\"\",1)","v":""},{"$f":"IF(A579=\"\",\"\",\"Y\")","v":""}]
[null,null,null,null,null,null,"",null,null,"",""]
[null,null,null,null,null,null,"",null,null,"",""]
[null,null,null,null,null,null,"",null,null,"",""]
[null,null,null,null,null,null,"",null,null,"",""]
[null,null,null,null,null,null,"",null,null,"",""]
[null,null,null,null,null,null,{"$f":"IF(K585=\"N\",0,IF(K585=\"Y\",F585/J585,\"\"))","v":""},null,null,"",""]
[null,null,null,null,null,null,"",null,null,"",""]
[null,null,null,null,null,null,"",null,null,"",""]
[null,null,null,null,null,null,"",null,null,"",""]
[null,null,null,null,null,null,"",null,null,"",""]
[null,null,null,null,null,null,"",null,null,"",""]
[null,null,null,null,null,null,"",null,null,"",""]
[null,null,null,null,null,null,"",null,null,"",""]
[null,null,null,null,null,null,"",null,null,"",""]
[null,null,null,null,null,null,"",null,null,"",""]
[null,null,null,null,null,null,"",null,null,"",""]
[null,null,null,null,null,null,"",null,null,"",""]
[null,null,null,null,null,null,"",null,null,"",""]
[null,null,null,null,null,null,"",null,null,"",""]
[null,null,null,null,null,null,"",null,null,"",""]
[null,null,null,null,null,null,"",null,null,"",""]
[null,null,null,null,null,null,"",null,null,"",""]
[null,null,null,null,null,null,"",null,null,"",""]
[null,null,null,null,null,null,"",null,null,"",""]
[null,null,null,null,null,null,"",null,null,"",""]
[null,null,null,null,null,null,"",null,null,"",""]
[null,null,null,null,null,null,"",null,null,"",""]
[null,null,null,null,null,null,"",null,null,"",""]
[null,null,null,null,null,null,"",null,null,"",""]
[null,null,null,null,null,null,"",null,null,"",""]
[null,null,null,null,null,null,"",null,null,"",""]
[null,null,null,null,null,null,"",null,null,"",""]
[null,null,null,null,null,null,"",null,null,"",""]
[null,null,null,null,null,null,"",null,null,"",""]
[null,null,null,null,null,null,"",null,null,"",""]
[null,null,null,null,null,null,"",null,null,"",""]
[null,null,null,null,null,null,"",null,null,"",""]
[null,null,null,null,null,null,"",null,null,"",""]
[null,null,null,null,null,null,"",null,null,"",""]
[null,null,null,null,null,null,"",null,null,"",""]
[null,null,null,null,null,null,"",null,null,"",""]
[null,null,null,null,null,null,"",null,null,"",""]
[null,null,null,null,null,null,"",null,null,"",""]
[null,null,null,null,null,null,"",null,null,"",""]
[null,null,null,null,null,null,"",null,null,"",""]
[null,null,null,null,null,null,"",null,null,"",""]
[null,null,null,null,null,null,"",null,null,"",""]
[null,null,null,null,null,null,"",null,null,"",""]
[null,null,null,null,null,null,"",null,null,"",""]
[null,null,null,null,null,null,"",null,null,"",""]
[null,null,null,null,null,null,"",null,null,"",""]
[null,null,null,null,null,null,"",null,null,"",""]
[null,null,null,null,null,null,"",null,null,"",""]
[null,null,null,null,null,null,"",null,null,"",""]
[null,null,null,null,null,null,"",null,null,"",""]
[null,null,null,null,null,null,"",null,null,"",""]
[null,null,null,null,null,null,"",null,null,"",""]
[null,null,null,null,null,null,"",null,null,"",""]
[null,null,null,null,null,null,"",null,null,"",""]
[null,null,null,null,null,null,"",null,null,"",""]
[null,null,null,null,null,null,"",null,null,"",""]
[null,null,null,null,null,null,"",null,null,"",""]
[null,null,null,null,null,null,"",null,null,"",""]
[null,null,null,null,null,null,"",null,null,{"$f":"IF(A643=\"\",\"\",1)","v":""},{"$f":"IF(A643=\"\",\"\",\"Y\")","v":""}]
[null,null,null,null,null,null,"",null,null,"",""]
[null,null,null,null,null,null,"",null,null,"",""]
[null,null,null,null,null,null,"",null,null,"",""]
[null,null,null,null,null,null,"",null,null,"",""]
[null,null,null,null,null,null,"",null,null,"",""]
[null,null,null,null,null,null,{"$f":"IF(K649=\"N\",0,IF(K649=\"Y\",F649/J649,\"\"))","v":""},null,null,"",""]
[null,null,null,null,null,null,"",null,null,"",""]
[null,null,null,null,null,null,"",null,null,"",""]
[null,null,null,null,null,null,"",null,null,"",""]
[null,null,null,null,null,null,"",null,null,"",""]
[null,null,null,null,null,null,"",null,null,"",""]
[null,null,null,null,null,null,"",null,null,"",""]
[null,null,null,null,null,null,"",null,null,"",""]
[null,null,null,null,null,null,"",null,null,"",""]
[null,null,null,null,null,null,"",null,null,"",""]
[null,null,null,null,null,null,"",null,null,"",""]
[null,null,null,null,null,null,"",null,null,"",""]
[null,null,null,null,null,null,"",null,null,"",""]
[null,null,null,null,null,null,"",null,null,"",""]
[null,null,null,null,null,null,"",null,null,"",""]
[null,null,null,null,null,null,"",null,null,"",""]
[null,null,null,null,null,null,"",null,null,"",""]
[null,null,null,null,null,null,"",null,null,"",""]
[null,null,null,null,null,null,"",null,null,"",""]
[null,null,null,null,null,null,"",null,null,"",""]
[null,null,null,null,null,null,"",null,null,"",""]
[null,null,null,null,null,null,"",null,null,"",""]
[null,null,null,null,null,null,"",null,null,"",""]
[null,null,null,null,null,null,"",null,null,"",""]
[null,null,null,null,null,null,"",null,null,"",""]
[null,null,null,null,null,null,"",null,null,"",""]
[null,null,null,null,null,null,"",null,null,"",""]
[null,null,null,null,null,null,"",null,null,"",""]
[null,null,null,null,null,null,"",null,null,"",""]
[null,null,null,null,null,null,"",null,null,"",""]
[null,null,null,null,null,null,"",null,null,"",""]
[null,null,null,null,null,null,"",null,null,"",""]
[null,null,null,null,null,null,"",null,null,"",""]
[null,null,null,null,null,null,"",null,null,"",""]
[null,null,null,null,null,null,"",null,null,"",""]
[null,null,null,null,null,null,"",null,null,"",""]
[null,null,null,null,null,null,"",null,null,"",""]
[null,null,null,null,null,null,"",null,null,"",""]
[null,null,null,null,null,null,"",null,null,"",""]
[null,null,null,null,null,null,"",null,null,"",""]
[null,null,null,null,null,null,"",null,null,"",""]
[null,null,null,null,null,null,"",null,null,"",""]
[null,null,null,null,null,null,"",null,null,"",""]
[null,null,null,null,null,null,"",null,null,"",""]
[null,null,null,null,null,null,"",null,null,"",""]
[null,null,null,null,null,null,"",null,null,"",""]
[null,null,null,null,null,null,"",null,null,"",""]
[null,null,null,null,null,null,"",null,null,"",""]
[null,null,null,null,null,null,"",null,null,"",""]
[null,null,null,null,null,null,"",null,null,"",""]
[null,null,null,null,null,null,"",null,null,"",""]
[null,null,null,null,null,null,"",null,null,"",""]
[null,null,null,null,null,null,"",null,null,"",""]
[null,null,null,null,null,null,"",null,null,"",""]
[null,null,null,null,null,null,"",null,null,"",""]
[null,null,null,null,null,null,"",null,null,"",""]
[null,null,null,null,null,null,"",null,null,"",""]
[null,null,null,null,null,null,"",null,null,"",""]
[null,null,null,null,null,null,"",null,null,{"$f":"IF(A707=\"\",\"\",1)","v":""},{"$f":"IF(A707=\"\",\"\",\"Y\")","v":""}]
[null,null,null,null,null,null,"",null,null,"",""]
[null,null,null,null,null,null,"",null,null,"",""]
[null,null,null,null,null,null,"",null,null,"",""]
[null,null,null,null,null,null,"",null,null,"",""]
[null,null,null,null,null,null,"",null,null,"",""]
[null,null,null,null,null,null,{"$f":"IF(K713=\"N\",0,IF(K713=\"Y\",F713/J713,\"\"))","v":""},null,null,"",""]
[null,null,null,null,null,null,"",null,null,"",""]
[null,null,null,null,null,null,"",null,null,"",""]
[null,null,null,null,null,null,"",null,null,"",""]
[null,null,null,null,null,null,"",null,null,"",""]
[null,null,null,null,null,null,"",null,null,"",""]
[null,null,null,null,null,null,"",null,null,"",""]
[null,null,null,null,null,null,"",null,null,"",""]
[null,null,null,null,null,null,"",null,null,"",""]
[null,null,null,null,null,null,"",null,null,"",""]
[null,null,null,null,null,null,"",null,null,"",""]
[null,null,null,null,null,null,"",null,null,"",""]
[null,null,null,null,null,null,"",null,null,"",""]
[null,null,null,null,null,null,"",null,null,"",""]
[null,null,null,null,null,null,"",null,null,"",""]
[null,null,null,null,null,null,"",null,null,"",""]
[null,null,null,null,null,null,"",null,null,"",""]
[null,null,null,null,null,null,"",null,null,"",""]
[null,null,null,null,null,null,"",null,null,"",""]
[null,null,null,null,null,null,"",null,null,"",""]
[null,null,null,null,null,null,"",null,null,"",""]
[null,null,null,null,null,null,"",null,null,"",""]
[null,null,null,null,null,null,"",null,null,"",""]
[null,null,null,null,null,null,"",null,null,"",""]
[null,null,null,null,null,null,"",null,null,"",""]
[null,null,null,null,null,null,"",null,null,"",""]
[null,null,null,null,null,null,"",null,null,"",""]
[null,null,null,null,null,null,"",null,null,"",""]
[null,null,null,null,null,null,"",null,null,"",""]
[null,null,null,null,null,null,"",null,null,"",""]
[null,null,null,null,null,null,"",null,null,"",""]
[null,null,null,null,null,null,"",null,null,"",""]
[null,null,null,null,null,null,"",null,null,"",""]
[null,null,null,null,null,null,"",null,null,"",""]
[null,null,null,null,null,null,"",null,null,"",""]
[null,null,null,null,null,null,"",null,null,"",""]
[null,null,null,null,null,null,"",null,null,"",""]
[null,null,null,null,null,null,"",null,null,"",""]
[null,null,null,null,null,null,"",null,null,"",""]
[null,null,null,null,null,null,"",null,null,"",""]
[null,null,null,null,null,null,"",null,null,"",""]
[null,null,null,null,null,null,"",null,null,"",""]
[null,null,null,null,null,null,"",null,null,"",""]
[null,null,null,null,null,null,"",null,null,"",""]
[null,null,null,null,null,null,"",null,null,"",""]
[null,null,null,null,null,null,"",null,null,"",""]
[null,null,null,null,null,null,"",null,null,"",""]
[null,null,null,null,null,null,"",null,null,"",""]
[null,null,null,null,null,null,"",null,null,"",""]
[null,null,null,null,null,null,"",null,null,"",""]
[null,null,null,null,null,null,"",null,null,"",""]
[null,null,null,null,null,null,"",null,null,"",""]
[null,null,null,null,null,null,"",null,null,"",""]
[null,null,null,null,null,null,"",null,null,"",""]
[null,null,null,null,null,null,"",null,null,"",""]
[null,null,null,null,null,null,"",null,null,"",""]
[null,null,null,null,null,null,"",null,null,"",""]
[null,null,null,null,null,null,"",null,null,"",""]
[null,null,null,null,null,null,"",null,null,{"$f":"IF(A771=\"\",\"\",1)","v":""},{"$f":"IF(A771=\"\",\"\",\"Y\")","v":""}]
[null,null,null,null,null,null,"",null,null,"",""]
[null,null,null,null,null,null,"",null,null,"",""]
[null,null,null,null,null,null,"",null,null,"",""]
[null,null,null,null,null,null,"",null,null,"",""]
[null,null,null,null,null,null,"",null,null,"",""]
[null,null,null,null,null,null,{"$f":"IF(K777=\"N\",0,IF(K777=\"Y\",F777/J777,\"\"))","v":""},null,null,"",""]
[null,null,null,null,null,null,"",null,null,"",""]
[null,null,null,null,null,null,"",null,null,"",""]
[null,null,null,null,null,null,"",null,null,"",""]
[null,null,null,null,null,null,"",null,null,"",""]
[null,null,null,null,null,null,"",null,null,"",""]
[null,null,null,null,null,null,"",null,null,"",""]
[null,null,null,null,null,null,"",null,null,"",""]
[null,null,null,null,null,null,"",null,null,"",""]
[null,null,null,null,null,null,"",null,null,"",""]
[null,null,null,null,null,null,"",null,null,"",""]
[null,null,null,null,null,null,"",null,null,"",""]
[null,null,null,null,null,null,"",null,null,"",""]
[null,null,null,null,null,null,"",null,null,"",""]
[null,null,null,null,null,null,"",null,null,"",""]
[null,null,null,null,null,null,"",null,null,"",""]
[null,null,null,null,null,null,"",null,null,"",""]
[null,null,null,null,null,null,"",null,null,"",""]
[null,null,null,null,null,null,"",null,null,"",""]
[null,null,null,null,null,null,"",null,null,"",""]
[null,null,null,null,null,null,"",null,null,"",""]
[null,null,null,null,null,null,"",null,null,"",""]
[null,null,null,null,null,null,"",null,null,"",""]
[null,null,null,null,null,null,"",null,null,"",""]
[null,null,null,null,null,null,"",null,null,"",""]
[null,null,null,null,null,null,"",null,null,"",""]
[null,null,null,null,null,null,"",null,null,"",""]
[null,null,null,null,null,null,"",null,null,"",""]
[null,null,null,null,null,null,"",null,null,"",""]
[null,null,null,null,null,null,"",null,null,"",""]
[null,null,null,null,null,null,"",null,null,"",""]
[null,null,null,null,null,null,"",null,null,"",""]
[null,null,null,null,null,null,"",null,null,"",""]
[null,null,null,null,null,null,"",null,null,"",""]
[null,null,null,null,null,null,"",null,null,"",""]
[null,null,null,null,null,null,"",null,null,"",""]
[null,null,null,null,null,null,"",null,null,"",""]
[null,null,null,null,null,null,"",null,null,"",""]
[null,null,null,null,null,null,"",null,null,"",""]
[null,null,null,null,null,null,"",null,null,"",""]
[null,null,null,null,null,null,"",null,null,"",""]
[null,null,null,null,null,null,"",null,null,"",""]
[null,null,null,null,null,null,"",null,null,"",""]
[null,null,null,null,null,null,"",null,null,"",""]
[null,null,null,null,null,null,"",null,null,"",""]
[null,null,null,null,null,null,"",null,null,"",""]
[null,null,null,null,null,null,"",null,null,"",""]
[null,null,null,null,null,null,"",null,null,"",""]
[null,null,null,null,null,null,"",null,null,"",""]
[null,null,null,null,null,null,"",null,null,"",""]
[null,null,null,null,null,null,"",null,null,"",""]
[null,null,null,null,null,null,"",null,null,"",""]
[null,null,null,null,null,null,"",null,null,"",""]
[null,null,null,null,null,null,"",null,null,"",""]
[null,null,null,null,null,null,"",null,null,"",""]
[null,null,null,null,null,null,"",null,null,"",""]
[null,null,null,null,null,null,"",null,null,"",""]
[null,null,null,null,null,null,"",null,null,"",""]
[null,null,null,null,null,null,"",null,null,{"$f":"IF(A835=\"\",\"\",1)","v":""},{"$f":"IF(A835=\"\",\"\",\"Y\")","v":""}]
[null,null,null,null,null,null,"",null,null,"",""]
[null,null,null,null,null,null,"",null,null,"",""]
[null,null,null,null,null,null,"",null,null,"",""]
[null,null,null,null,null,null,"",null,null,"",""]
[null,null,null,null,null,null,"",null,null,"",""]
[null,null,null,null,null,null,{"$f":"IF(K841=\"N\",0,IF(K841=\"Y\",F841/J841,\"\"))","v":""},null,null,"",""]
[null,null,null,null,null,null,"",null,null,"",""]
[null,null,null,null,null,null,"",null,null,"",""]
[null,null,null,null,null,null,"",null,null,"",""]
[null,null,null,null,null,null,"",null,null,"",""]
[null,null,null,null,null,null,"",null,null,"",""]
[null,null,null,null,null,null,"",null,null,"",""]
[null,null,null,null,null,null,"",null,null,"",""]
[null,null,null,null,null,null,"",null,null,"",""]
[null,null,null,null,null,null,"",null,null,"",""]
[null,null,null,null,null,null,"",null,null,"",""]
[null,null,null,null,null,null,"",null,null,"",""]
[null,null,null,null,null,null,"",null,null,"",""]
[null,null,null,null,null,null,"",null,null,"",""]
[null,null,null,null,null,null,"",null,null,"",""]
[null,null,null,null,null,null,"",null,null,"",""]
[null,null,null,null,null,null,"",null,null,"",""]
[null,null,null,null,null,null,"",null,null,"",""]
[null,null,null,null,null,null,"",null,null,"",""]
[null,null,null,null,null,null,"",null,null,"",""]
[null,null,null,null,null,null,"",null,null,"",""]
[null,null,null,null,null,null,"",null,null,"",""]
[null,null,null,null,null,null,"",null,null,"",""]
[null,null,null,null,null,null,"",null,null,"",""]
[null,null,null,null,null,null,"",null,null,"",""]
[null,null,null,null,null,null,"",null,null,"",""]
[null,null,null,null,null,null,"",null,null,"",""]
[null,null,null,null,null,null,"",null,null,"",""]
[null,null,null,null,null,null,"",null,null,"",""]
[null,null,null,null,null,null,"",null,null,"",""]
[null,null,null,null,null,null,"",null,null,"",""]
[null,null,null,null,null,null,"",null,null,"",""]
[null,null,null,null,null,null,"",null,null,"",""]
[null,null,null,null,null,null,"",null,null,"",""]
[null,null,null,null,null,null,"",null,null,"",""]
[null,null,null,null,null,null,"",null,null,"",""]
[null,null,null,null,null,null,"",null,null,"",""]
[null,null,null,null,null,null,"",null,null,"",""]
[null,null,null,null,null,null,"",null,null,"",""]
[null,null,null,null,null,null,"",null,null,"",""]
[null,null,null,null,null,null,"",null,null,"",""]
[null,null,null,null,null,null,"",null,null,"",""]
[null,null,null,null,null,null,"",null,null,"",""]
[null,null,null,null,null,null,"",null,null,"",""]
[null,null,null,null,null,null,"",null,null,"",""]
[null,null,null,null,null,null,"",null,null,"",""]
[null,null,null,null,null,null,"",null,null,"",""]
[null,null,null,null,null,null,"",null,null,"",""]
[null,null,null,null,null,null,"",null,null,"",""]
[null,null,null,null,null,null,"",null,null,"",""]
[null,null,null,null,null,null,"",null,null,"",""]
[null,null,null,null,null,null,"",null,null,"",""]
[null,null,null,null,null,null,"",null,null,"",""]
[null,null,null,null,null,null,"",null,null,"",""]
[null,null,null,null,null,null,"",null,null,"",""]
[null,null,null,null,null,null,"",null,null,"",""]
[null,null,null,null,null,null,"",null,null,"",""]
[null,null,null,null,null,null,"",null,null,"",""]
[null,null,null,null,null,null,"",null,null,{"$f":"IF(A899=\"\",\"\",1)","v":""},{"$f":"IF(A899=\"\",\"\",\"Y\")","v":""}]
[null,null,null,null,null,null,"",null,null,"",""]
[null,null,null,null,null,null,"",null,null,"",""]
[null,null,null,null,null,null,"",null,null,"",""]
[null,null,null,null,null,null,"",null,null,"",""]
[null,null,null,null,null,null,"",null,null,"",""]
[null,null,null,null,null,null,{"$f":"IF(K905=\"N\",0,IF(K905=\"Y\",F905/J905,\"\"))","v":""},null,null,"",""]
[null,null,null,null,null,null,"",null,null,"",""]
[null,null,null,null,null,null,"",null,null,"",""]
[null,null,null,null,null,null,"",null,null,"",""]
[null,null,null,null,null,null,"",null,null,"",""]
[null,null,null,null,null,null,"",null,null,"",""]
[null,null,null,null,null,null,"",null,null,"",""]
[null,null,null,null,null,null,"",null,null,"",""]
[null,null,null,null,null,null,"",null,null,"",""]
[null,null,null,null,null,null,"",null,null,"",""]
[null,null,null,null,null,null,"",null,null,"",""]
[null,null,null,null,null,null,"",null,null,"",""]
[null,null,null,null,null,null,"",null,null,"",""]
[null,null,null,null,null,null,"",null,null,"",""]
[null,null,null,null,null,null,"",null,null,"",""]
[null,null,null,null,null,null,"",null,null,"",""]
[null,null,null,null,null,null,"",null,null,"",""]
[null,null,null,null,null,null,"",null,null,"",""]
[null,null,null,null,null,null,"",null,null,"",""]
[null,null,null,null,null,null,"",null,null,"",""]
[null,null,null,null,null,null,"",null,null,"",""]
[null,null,null,null,null,null,"",null,null,"",""]
[null,null,null,null,null,null,"",null,null,"",""]
[null,null,null,null,null,null,"",null,null,"",""]
[null,null,null,null,null,null,"",null,null,"",""]
[null,null,null,null,null,null,"",null,null,"",""]
[null,null,null,null,null,null,"",null,null,"",""]
[null,null,null,null,null,null,"",null,null,"",""]
[null,null,null,null,null,null,"",null,null,"",""]
[null,null,null,null,null,null,"",null,null,"",""]
[null,null,null,null,null,null,"",null,null,"",""]
[null,null,null,null,null,null,"",null,null,"",""]
[null,null,null,null,null,null,"",null,null,"",""]
[null,null,null,null,null,null,"",null,null,"",""]
[null,null,null,null,null,null,"",null,null,"",""]
[null,null,null,null,null,null,"",null,null,"",""]
[null,null,null,null,null,null,"",null,null,"",""]
[null,null,null,null,null,null,"",null,null,"",""]
[null,null,null,null,null,null,"",null,null,"",""]
[null,null,null,null,null,null,"",null,null,"",""]
[null,null,null,null,null,null,"",null,null,"",""]
[null,null,null,null,null,null,"",null,null,"",""]
[null,null,null,null,null,null,"",null,null,"",""]
[null,null,null,null,null,null,"",null,null,"",""]
[null,null,null,null,null,null,"",null,null,"",""]
[null,null,null,null,null,null,"",null,null,"",""]
[null,null,null,null,null,null,"",null,null,"",""]
[null,null,null,null,null,null,"",null,null,"",""]
[null,null,null,null,null,null,"",null,null,"",""]
[null,null,null,null,null,null,"",null,null,"",""]
[null,null,null,null,null,null,"",null,null,"",""]
[null,null,null,null,null,null,"",null,null,"",""]
[null,null,null,null,null,null,"",null,null,"",""]
[null,null,null,null,null,null,"",null,null,"",""]
[null,null,null,null,null,null,"",null,null,"",""]
[null,null,null,null,null,null,"",null,null,"",""]
[null,null,null,null,null,null,"",null,null,"",""]
[null,null,null,null,null,null,"",null,null,"",""]
[null,null,null,null,null,null,"",null,null,{"$f":"IF(A963=\"\",\"\",1)","v":""},{"$f":"IF(A963=\"\",\"\",\"Y\")","v":""}]
[null,null,null,null,null,null,"",null,null,"",""]
[null,null,null,null,null,null,"",null,null,"",""]
[null,null,null,null,null,null,"",null,null,"",""]
[null,null,null,null,null,null,"",null,null,"",""]
[null,null,null,null,null,null,"",null,null,"",""]
[null,null,null,null,null,null,{"$f":"IF(K969=\"N\",0,IF(K969=\"Y\",F969/J969,\"\"))","v":""},null,null,"",""]
[null,null,null,null,null,null,"",null,null,"",""]
[null,null,null,null,null,null,"",null,null,"",""]
[null,null,null,null,null,null,"",null,null,"",""]
[null,null,null,null,null,null,"",null,null,"",""]
[null,null,null,null,null,null,"",null,null,"",""]
[null,null,null,null,null,null,"",null,null,"",""]
[null,null,null,null,null,null,"",null,null,"",""]
[null,null,null,null,null,null,"",null,null,"",""]
[null,null,null,null,null,null,"",null,null,"",""]
[null,null,null,null,null,null,"",null,null,"",""]
[null,null,null,null,null,null,"",null,null,"",""]
[null,null,null,null,null,null,"",null,null,"",""]
[null,null,null,null,null,null,"",null,null,"",""]
[null,null,null,null,null,null,"",null,null,"",""]
[null,null,null,null,null,null,"",null,null,"",""]
[null,null,null,null,null,null,"",null,null,"",""]
[null,null,null,null,null,null,"",null,null,"",""]
[null,null,null,null,null,null,"",null,null,"",""]
[null,null,null,null,null,null,"",null,null,"",""]
[null,null,null,null,null,null,"",null,null,"",""]
[null,null,null,null,null,null,"",null,null,"",""]
[null,null,null,null,null,null,"",null,null,"",""]
[null,null,null,null,null,null,"",null,null,"",""]
[null,null,null,null,null,null,"",null,null,"",""]
[null,null,null,null,null,null,"",null,null,"",""]
[null,null,null,null,null,null,"",null,null,"",""]
[null,null,null,null,null,null,"",null,null,"",""]
[null,null,null,null,null,null,"",null,null,"",""]
[null,null,null,null,null,null,"",null,null,"",""]
[null,null,null,null,null,null,"",null,null,"",""]
[null,null,null,null,null,null,"",null,null,"",""]

{"sheet":"Category","index":1,"n_rows":5,"n_cols":7,"rows_kept":5,"cut":false,"hidden":false,"merged":[]}
["קטגוריה","סכום חודשי","אחוז הוצאה לפי קטגוריה","מס' חודשים עליהם מבוצע החישוב:",12]
["ביגוד",8.3333333333333339,0.24509803921568626,null,null,"ביגוד",0.24509803921568626]
["אוכל",14.166666666666666,0.41666666666666669,null,null,"אוכל",0.41666666666666669]
["פארם",4.166666666666667,0.12254901960784313,null,null,"פארם",0.12254901960784313]
["שיפוץ בית",8.3333333333333339,0.24509803921568626,null,null,"שיפוץ בית",0.24509803921568626]

{"sheet":"Category_and_subcat","index":2,"n_rows":6,"n_cols":8,"rows_kept":6,"cut":false,"hidden":false,"merged":[]}
["קטגוריה","קטגוריית משנה","סכום חודשי","אחוז הוצאה לפי קטגוריה","מס' חודשים עליהם מבוצע החישוב:",12]
["אוכל","בחוץ",4.166666666666667,0.12254901960784313,null,null,"אוכל-בחוץ",0.12254901960784313]
["אוכל","עבודה",10,0.29411764705882354,null,null,"אוכל-עבודה",0.29411764705882354]
["ביגוד",null,8.3333333333333339,0.24509803921568626,null,null,"ביגוד",0.24509803921568626]
["פארם",null,4.166666666666667,0.12254901960784313,null,null,"פארם",0.12254901960784313]
["שיפוץ בית",null,8.3333333333333339,0.24509803921568626,null,null,"שיפוץ בית",0.24509803921568626]